bitfinex-derivatives/quotes_ETHF0:USTF0_20250911
["timestamp","ask_amount","ask_price","bid_price","bid_amount"]
[1757584161818,0.4976,4415.3,4415.2,3.6081]
[1757584162324,0.4976,4415.3,4415.2,3.9173]
[1757584163914,0.1214,4416.0,4415.2,3.9173]
[1757584164115,0.399,4415.9,4415.6,0.40754]
[1757584164320,0.6955,4415.8,4415.7,0.1988]
[1757584165512,0.5204,4415.5,4415.4,0.4288]
[1757584165724,0.8169,4415.5,4415.4,0.6303]
[1757584166330,0.8169,4415.5,4415.4,0.9395]
[1757584167327,0.8169,4415.5,4415.4,0.6303]
[1757584167526,0.8169,4415.5,4415.4,1.03786]
[1757584167728,0.8169,4415.5,4415.4,1.32866]
[1757584168128,0.8169,4415.5,4415.4,0.9211]
[1757584168727,0.8169,4415.5,4415.4,1.32866]
[1757584169235,0.8169,4415.5,4415.4,0.9211]
[1757584169420,0.8169,4415.5,4415.4,0.6303]
[1757584171230,0.8169,4415.5,4415.4,0.23]
[1757584171625,0.8169,4415.5,4415.4,0.4246]
[1757584171929,0.8169,4415.5,4415.4,0.1946]
[1757584173923,0.2968,4415.4,4415.2,3.4368]
[1757584174125,0.7062,4415.3,4415.2,3.6314]
[1757584174925,0.7062,4415.3,4415.2,3.2078]
[1757584175126,0.7062,4414.8,4414.7,3.6314]
[1757584175632,0.7062,4414.8,4414.7,3.8279]
[1757584175830,0.7062,4414.8,4414.7,4.1187]
[1757584177428,0.8276,4415.5,4415.4,0.1946]
[1757584177634,1.41711729,4415.5,4415.4,0.3911]
[1757584177833,1.41711729,4415.5,4415.4,0.6819]
[1757584178025,0.5107,4415.5,4415.4,0.6819]
[1757584178226,0.2968,4415.5,4415.4,0.6819]
[1757584178426,0.5107,4415.5,4415.4,0.6819]
[1757584179025,0.5107,4415.5,4415.4,1.08946]
[1757584179225,0.5359,4415.5,4415.2,3.2078]
[1757584179426,0.7062,4415.3,4415.2,3.2078]
[1757584179726,1.2960657,4415.3,4415.2,3.4024]
[1757584180427,1.2960657,4415.3,4415.2,3.5989]
[1757584181133,0.7062,4415.3,4415.2,3.5989]
[1757584182936,0.7062,4415.3,4415.2,3.4024]
[1757584183146,0.7062,4415.3,4415.2,3.2078]
[1757584183530,0.7062,4415.3,4415.2,3.4024]
[1757584183726,0.7062,4415.3,4415.2,3.8897]
[1757584183932,0.5107,4415.3,4415.2,4.29728]
[1757584184145,0.5107,4415.3,4415.2,3.8897]
[1757584184433,0.229,4415.9,4415.3,0.2908]
[1757584184638,1.29608926,4415.8,4415.7,0.1946]
[1757584185033,1.29608926,4415.8,4415.3,0.69837]
[1757584185233,0.7062,4415.4,4415.3,1.08947]
[1757584185433,1.29608926,4415.4,4415.3,1.08947]
[1757584185743,1.29608926,4415.4,4415.3,0.6819]
[1757584186040,1.29608926,4415.4,4415.3,0.1946]
[1757584186230,1.29608926,4415.4,4415.3,0.3911]
[1757584186633,1.29608926,4415.4,4415.3,0.6819]
[1757584189143,0.7062,4415.4,4415.3,0.6819]
[1757584189750,0.4094,4415.4,4415.2,3.4368]
[1757584190044,0.7062,4415.3,4415.2,3.4024]
[1757584190346,0.7062,4415.3,4415.2,3.8897]
[1757584191245,0.5107,4415.3,4415.2,4.29728]
[1757584191637,0.2968,4415.2,4414.4,3.4986]
[1757584191839,0.8327,4415.0,4414.9,3.5989]
[1757584192138,0.5359,4415.5,4415.4,0.1946]
[1757584192346,1.42327055,4415.5,4415.4,0.1946]
[1757584192648,1.42327055,4415.5,4415.4,0.3911]
[1757584193354,1.42327055,4415.5,4415.4,0.6819]
[1757584193946,1.42327055,4415.5,4415.4,0.3911]
[1757584194248,1.42327055,4415.5,4415.4,0.1946]
[1757584194446,1.42327055,4415.5,4415.1,0.5208]
[1757584194447,1.42327055,4415.5,4415.1,0.23]
[1757584194650,0.8327,4415.5,4415.1,0.23]
[1757584195946,0.8327,4415.0,4414.9,3.2078]
[1757584196342,0.8327,4415.0,4414.9,3.4024]
[1757584196541,0.8327,4415.0,4414.9,3.5989]
[1757584196943,0.8327,4415.0,4414.9,3.8897]
[1757584197651,0.8327,4415.0,4414.9,3.5989]
[1757584199452,0.8404,4415.0,4414.9,3.894]
[1757584200352,0.8404,4415.0,4414.9,3.5989]
[1757584202653,0.8404,4415.0,4414.4,0.40764]
[1757584202654,0.8339,4414.5,4414.4,3.4181]
[1757584202853,0.8339,4414.5,4414.4,3.6471]
[1757584203249,0.8339,4414.5,4414.4,4.143]
[1757584203451,0.8339,4414.5,4414.4,3.8479]
[1757584203652,0.8339,4414.5,4414.4,4.143]
[1757584204256,0.5026,4415.4,4415.3,0.7062]
[1757584204453,0.5026,4415.4,4415.3,3.914]
[1757584204761,0.7058,4415.4,4415.0,0.229]
[1757584204961,0.7058,4415.4,4414.9,0.2951]
[1757584205168,0.8339,4415.0,4414.9,0.4403]
[1757584205463,0.8339,4415.0,4414.9,0.9362]
[1757584206054,0.8339,4415.0,4414.9,0.6411]
[1757584206254,0.2959,4415.5,4415.4,1.11376]
[1757584206456,0.8339,4415.5,4415.4,3.914]
[1757584207665,0.5026,4415.5,4415.4,3.914]
[1757584208373,0.6399,4415.9,4415.8,0.4111]
[1757584208666,0.99969204,4415.9,4415.8,0.4111]
[1757584208864,1.29559204,4415.9,4415.8,0.4111]
[1757584209366,1.29559204,4415.9,4415.5,0.40754]
[1757584209568,0.7058,4415.6,4415.5,0.61784]
[1757584209866,0.7058,4415.6,4415.5,0.81864]
[1757584210166,0.7058,4415.6,4415.5,1.11374]
[1757584211868,0.5026,4415.6,4415.5,1.11374]
[1757584212468,0.2959,4415.6,4415.5,1.11374]
[1757584214569,0.2959,4415.9,4415.7,0.40752]
[1757584214771,0.5026,4415.9,4415.8,0.7062]
[1757584216172,0.7058,4415.9,4415.8,0.7062]
[1757584216569,0.1281,4416.5,4416.1,0.40749]
[1757584216874,0.5026,4416.2,4416.1,1.11369]
[1757584217671,0.7058,4416.2,4416.1,1.11369]
[1757584218064,0.2959,4416.1,4416.0,3.2078]
[1757584218268,0.2959,4416.1,4415.6,0.23]
[1757584218269,0.1281,4416.0,4415.6,0.23]
[1757584218467,0.2959,4415.6,4415.5,0.40755]
[1757584218673,0.7058,4415.6,4415.5,0.61785]
[1757584218970,0.7058,4415.6,4415.5,0.81865]
[1757584219165,0.7058,4415.6,4415.5,1.11375]
[1757584220274,0.7058,4415.6,4415.5,0.81865]
[1757584220470,0.7058,4415.6,4415.4,3.2078]
[1757584220672,0.1281,4416.0,4415.4,3.2078]
[1757584220673,0.8339,4415.5,4415.4,3.2078]
[1757584222871,0.1281,4415.0,4414.9,3.6481]
[1757584223073,0.8339,4415.0,4414.9,3.914]
[1757584223271,0.8339,4415.0,4414.9,3.6189]
[1757584223471,0.8339,4415.0,4414.9,3.914]
[1757584224271,0.5026,4415.0,4414.9,3.914]
[1757584224476,0.1281,4415.5,4415.0,0.40759]
[1757584224680,0.538,4415.5,4415.4,0.2103]
[1757584225071,0.8339,4415.5,4415.4,0.2103]
[1757584225771,0.5026,4415.5,4415.4,3.914]
[1757584225976,0.2959,4415.5,4415.4,3.914]
[1757584226174,0.6389,4415.9,4415.8,0.4111]
[1757584226481,0.4099,4415.9,4415.8,0.4111]
[1757584226780,0.7058,4415.9,4415.8,0.7062]
[1757584227176,0.229,4416.3,4415.8,1.11372]
[1757584227387,0.5114,4416.1,4416.0,0.3885]
[1757584227574,0.5114,4416.1,4416.0,0.6904]
[1757584227575,0.7177,4416.1,4416.0,0.6904]
[1757584229170,0.7177,4416.1,4416.0,0.3885]
[1757584229374,0.8436,4415.5,4415.4,4.23385]
[1757584229673,0.8436,4415.5,4415.4,4.53575]
[1757584229873,0.7177,4415.5,4415.4,4.53575]
[1757584230184,0.5065,4415.5,4415.4,4.53575]
[1757584231380,0.1259,4416.0,4415.4,3.7397]
[1757584231682,0.5434,4416.0,4415.9,0.3885]
[1757584231985,0.8436,4416.0,4415.9,0.3885]
[1757584233486,0.8436,4416.0,4415.9,0.1938]
[1757584234074,0.7177,4415.9,4415.8,0.1938]
[1757584234886,0.7177,4415.9,4415.8,0.6904]
[1757584236485,0.5065,4415.9,4415.8,0.6904]
[1757584238487,0.7177,4415.9,4415.8,0.6904]
[1757584239184,0.2063,4415.9,4415.8,0.6904]
[1757584239391,0.5065,4415.9,4415.8,0.6904]
[1757584239686,0.7177,4415.9,4415.8,0.6904]
[1757584241292,0.7177,4415.9,4415.8,0.3885]
[1757584242387,0.1259,4416.0,4415.4,3.2078]
[1757584242388,0.1259,4415.5,4415.4,3.2078]
[1757584242592,0.8436,4415.5,4415.4,3.2078]
[1757584242794,0.8436,4415.5,4415.4,3.4016]
[1757584244796,0.8436,4415.5,4415.4,3.8982]
[1757584248200,0.8436,4415.5,4415.4,3.2078]
[1757584251697,0.8436,4415.5,4415.4,3.4016]
[1757584253811,0.8436,4415.5,4415.4,3.8982]
[1757584260510,0.3002,4415.5,4415.4,3.8982]
[1757584260714,0.3002,4415.5,4415.4,4.30576]
[1757584260918,0.3002,4415.5,4415.4,3.8982]
[1757584261412,0.507,4415.5,4415.4,3.8982]
[1757584261712,0.8482,4415.5,4415.4,3.4016]
[1757584261918,0.2989,4415.4,4414.8,0.3036]
[1757584262118,0.1282,4415.5,4414.8,0.5326]
[1757584262310,0.7187,4415.3,4415.2,0.1961]
[1757584262505,0.7187,4415.3,4414.9,0.3036]
[1757584262707,0.8469,4415.0,4414.7,3.2078]
[1757584262912,0.4198,4414.8,4414.7,3.2078]
[1757584263113,0.7187,4414.8,4414.7,3.2078]
[1757584263308,0.7187,4414.8,4414.7,3.9157]
[1757584267324,0.7187,4414.8,4414.7,3.6121]
[1757584268518,0.7187,4414.8,4414.7,0.4043]
[1757584270318,0.7187,4414.8,4414.7,0.1961]
[1757584272722,0.7187,4414.8,4414.7,0.4043]
[1757584273024,0.7187,4414.8,4414.7,0.7079]
[1757584275722,0.2989,4415.2,4414.2,0.3036]
[1757584275919,0.52541,4415.2,4414.2,0.3036]
[1757584276114,0.2989,4415.1,4414.3,0.3036]
[1757584276319,0.7187,4414.9,4414.8,0.1961]
[1757584277928,0.7187,4414.9,4414.5,0.3036]
[1757584278129,0.4198,4414.9,4414.2,0.3036]
[1757584278323,0.5057,4414.3,4414.2,0.93442999]
[1757584278623,0.5057,4414.3,4414.2,0.7079]
[1757584279230,0.2989,4415.2,4414.2,0.3036]
[1757584279428,0.52541,4415.2,4414.2,0.3036]
[1757584279729,0.5057,4414.3,4414.2,0.7079]
[1757584280926,0.2989,4414.2,4413.5,3.5114]
[1757584281128,0.7187,4413.6,4413.5,3.9157]
[1757584281329,0.5057,4413.6,4413.5,3.9157]
[1757584282627,0.2989,4413.6,4413.5,3.9157]
[1757584285028,0.1282,4414.5,4413.6,0.3036]
[1757584285029,0.2989,4414.4,4413.6,0.3036]
[1757584285229,3.5067,4414.7,4414.6,0.7079]
[1757584285531,3.2078,4414.7,4414.6,0.7079]
[1757584286136,0.5057,4415.3,4415.2,0.7079]
[1757584286436,0.2989,4415.3,4415.2,0.7079]
[1757584286728,3.2078,4415.4,4415.3,0.7079]
[1757584286924,3.5067,4415.4,4415.3,0.7079]
[1757584287132,0.229,4415.8,4415.4,0.2978]
[1757584287429,0.229,4415.8,4415.7,0.6966]
[1757584287430,0.7552,4415.8,4415.7,0.6966]
[1757584287729,0.5262,4415.8,4415.7,0.6966]
[1757584290422,32.7532,4416.0,4415.7,0.6966]
[1757584290623,32.7532,4416.0,4415.5,3.2078]
[1757584290624,0.229,4415.9,4415.8,0.2978]
[1757584290826,0.229,4415.9,4415.8,0.6966]
[1757584291129,3.74,4416.5,4416.4,0.1945]
[1757584291429,4.56251127,4416.5,4416.4,0.1945]
[1757584291730,4.88141127,4416.5,4416.4,0.3988]
[1757584292131,4.88141127,4416.5,4416.4,0.6966]
[1757584292629,4.65241127,4416.5,4416.4,0.6966]
[1757584292827,4.2879,4416.5,4416.4,0.6966]
[1757584293229,4.0589,4416.5,4416.4,0.6966]
[1757584293430,4.2879,4416.5,4416.4,0.6966]
[1757584293933,4.0589,4416.5,4416.4,0.6966]
[1757584294135,4.2879,4416.5,4416.4,0.6966]
[1757584296832,4.0589,4416.5,4416.4,0.6966]
[1757584297132,4.2879,4416.5,4416.4,0.6966]
[1757584298934,4.2879,4416.5,4416.4,0.3988]
[1757584299236,4.2879,4416.5,4416.4,0.6966]
[1757584299439,1.0801,4416.5,4416.4,0.6966]
[1757584300130,0.8511,4416.5,4416.4,0.6966]
[1757584300430,1.0801,4416.5,4416.4,0.6966]
[1757584301832,0.5262,4416.5,4416.4,1.10406]
[1757584302035,0.3189,4416.9,4416.8,0.6966]
[1757584302334,0.5262,4416.9,4416.8,0.6966]
[1757584303039,0.5262,4416.9,4416.8,1.10403]
[1757584303040,0.7229,4416.9,4416.8,1.10403]
[1757584303225,0.7229,4416.9,4416.8,0.6966]
[1757584305529,0.7229,4416.9,4416.8,3.9044]
[1757584306742,0.7229,4416.9,4416.8,0.3988]
[1757584307240,0.7229,4416.9,4416.8,3.9044]
[1757584310645,0.5262,4416.9,4416.8,3.9044]
[1757584311840,0.3189,4416.9,4416.8,3.9044]
[1757584313141,0.5262,4416.9,4416.8,3.9044]
[1757584314943,0.3189,4416.9,4416.8,3.9044]
[1757584315642,1.37608158,4418.9,4417.6,0.1945]
[1757584315643,0.404,4417.7,4417.6,0.1945]
[1757584315841,0.1249,4417.5,4417.4,0.1945]
[1757584316140,0.8478,4417.5,4417.4,0.1945]
[1757584317045,0.8478,4417.5,4417.4,0.6966]
[1757584318847,0.8464,4417.0,4416.9,0.5033]
[1757584319041,0.8464,4417.0,4416.9,0.1955]
[1757584319443,0.529,4417.0,4416.8,3.2078]
[1757584319635,0.3174,4416.9,4416.8,3.2078]
[1757584319840,0.7294,4416.9,4416.8,3.2078]
[1757584320040,0.7294,4416.9,4416.8,3.6006]
[1757584320242,0.7294,4416.9,4416.8,3.9084]
[1757584321344,0.7294,4416.9,4416.8,4.31582]
[1757584321540,0.7294,4416.9,4416.8,3.9084]
[1757584321940,0.5276,4416.9,4416.8,4.31582]
[1757584322148,0.1249,4417.5,4416.8,4.31582]
[1757584322343,0.7294,4417.4,4417.3,0.7006]
[1757584323749,0.7294,4417.4,4417.3,0.3928]
[1757584324151,0.7294,4417.4,4417.3,0.7006]
[1757584327654,0.5276,4417.4,4417.3,0.7006]
[1757584329260,0.5276,4417.4,4417.3,3.9084]
[1757584330664,3.2078,4418.3,4417.3,3.9084]
[1757584330856,1.00834789,4417.9,4417.8,0.1955]
[1757584331559,1.32574789,4417.9,4417.8,0.1955]
[1757584333174,1.00834789,4417.9,4417.3,3.5156]
[1757584333374,0.91374789,4417.8,4417.3,3.5156]
[1757584333577,0.7294,4417.8,4417.7,0.1955]
[1757584333766,1.32095775,4417.8,4417.7,0.1955]
[1757584335170,1.32094131,4417.8,4417.7,0.1955]
[1757584337276,1.32094131,4417.8,4417.7,0.3928]
[1757584337473,1.11914131,4417.8,4417.7,1.10794]
[1757584337769,0.5276,4418.2,4418.1,1.1079]
[1757584338172,1.11922686,4418.2,4418.1,1.1079]
[1757584338374,1.32102686,4418.2,4418.1,0.7006]
[1757584338970,0.59162686,4418.2,4418.1,1.1079]
[1757584339474,0.5276,4418.4,4418.3,0.7006]
[1757584339770,1.11855835,4418.4,4418.3,0.7006]
[1757584340370,0.5276,4418.4,4418.3,1.10789]
[1757584340771,0.17,4418.9,4418.5,0.40726]
[1757584340974,1.11839866,4418.8,4418.7,3.9084]
[1757584341172,0.59079866,4418.8,4418.7,3.9084]
[1757584341379,0.7294,4418.8,4418.7,3.6006]
[1757584341679,0.7294,4418.8,4418.7,3.4033]
[1757584342472,0.17,4418.9,4418.8,0.7006]
[1757584342473,0.4874,4418.9,4418.8,0.7006]
[1757584342681,0.8994,4418.9,4418.8,0.3928]
[1757584342978,0.8994,4418.9,4418.7,3.2078]
[1757584342979,0.3174,4418.8,4418.7,3.2078]
[1757584343176,0.7294,4418.8,4418.7,3.2078]
[1757584345478,0.7294,4418.8,4418.7,3.4033]
[1757584345679,0.5276,4418.8,4418.7,3.9084]
[1757584345887,0.3174,4418.8,4418.7,3.9084]
[1757584346182,0.17,4418.9,4418.8,1.10784]
[1757584346370,0.17,4418.9,4418.7,3.2078]
[1757584346371,0.2102,4419.7,4419.0,1.01805]
[1757584346579,0.412,4419.7,4419.6,0.1955]
[1757584346772,0.529,4419.5,4419.4,0.4255]
[1757584347079,0.8464,4419.5,4419.4,0.4255]
[1757584347288,0.8464,4419.5,4419.4,0.8436]
[1757584350586,3.2078,4419.9,4419.4,0.8436]
[1757584350587,0.3199,4419.8,4419.4,0.6228]
[1757584350787,3.6168,4419.9,4419.8,0.405]
[1757584351380,3.9367,4419.9,4419.8,0.405]
[1757584352592,0.7289,4419.9,4419.8,0.405]
[1757584352886,0.7289,4419.9,4419.8,0.81215]
[1757584353878,0.3199,4419.9,4419.8,4.01995]
[1757584354092,0.3199,4419.9,4419.8,4.24075]
[1757584354587,0.117,4420.5,4420.4,1.03289]
[1757584354588,0.6454,4420.5,4420.4,1.03289]
[1757584354893,0.6454,4420.5,4420.4,4.24069]
[1757584355277,0.8465,4420.5,4420.4,6.21372193]
[1757584355483,0.8465,4420.5,4420.4,3.8336]
[1757584355788,0.6454,4421.0,4420.9,0.81205]
[1757584355984,0.6454,4421.0,4420.9,4.24065]
[1757584356487,0.5284,4421.4,4421.3,0.812]
[1757584357287,0.3199,4421.4,4421.3,1.26481]
[1757584357786,0.3199,4421.4,4421.3,1.03281]
[1757584357995,0.7289,4421.4,4421.3,0.432]
[1757584358690,0.7289,4421.4,4421.3,0.637]
[1757584358892,0.7289,4421.4,4421.3,0.8578]
[1757584359082,0.3199,4421.4,4421.3,0.8578]
[1757584359288,0.2085,4421.9,4421.8,0.405]
[1757584359483,0.5284,4421.9,4421.8,0.405]
[1757584359683,0.7289,4421.9,4421.8,0.405]
[1757584360282,0.5284,4421.9,4421.8,0.6258]
[1757584360485,0.5284,4421.9,4421.8,0.405]
[1757584360794,0.7289,4421.9,4421.8,0.637]
[1757584361590,0.7289,4421.9,4421.8,0.405]
[1757584361790,0.7289,4421.9,4421.8,0.432]
[1757584362797,0.7289,4421.9,4421.8,0.2]
[1757584363492,0.5284,4421.9,4421.8,0.405]
[1757584363795,0.5284,4421.9,4421.8,0.6258]
[1757584364387,0.5284,4421.9,4421.8,0.405]
[1757584365298,0.5284,4421.9,4421.8,0.81196]
[1757584365498,0.7289,4421.9,4421.8,0.81196]
[1757584367702,0.7289,4421.9,4421.8,0.40696]
[1757584368197,0.7289,4421.7,4421.6,3.2078]
[1757584368905,0.7289,4421.7,4421.6,3.4078]
[1757584369104,0.1176,4422.5,4422.4,0.40691]
[1757584369401,0.3199,4422.4,4422.3,3.84671]
[1757584369604,0.7289,4422.4,4422.3,3.84671]
[1757584369901,0.7289,4422.4,4422.3,3.2078]
[1757584372798,0.1176,4422.0,4421.2,3.2078]
[1757584372999,0.7289,4421.3,4421.2,3.2078]
[1757584374195,1.31434841,4421.3,4421.2,3.2078]
[1757584377908,1.31434841,4421.3,4421.2,3.4078]
[1757584379619,1.31434841,4421.3,4421.2,3.6154]
[1757584380400,1.11384841,4421.3,4421.2,4.02242]
[1757584380605,0.90534841,4421.3,4421.2,4.24332]
[1757584381408,0.58544841,4421.3,4421.2,4.24332]
[1757584381912,0.89454841,4421.3,4421.2,4.47732]
[1757584383712,0.3091,4421.3,4421.2,4.47732]
[1757584384604,0.3995,4420.8,4420.7,3.4111]
[1757584384798,0.7086,4420.8,4420.7,3.4111]
[1757584384999,0.7086,4420.8,4420.7,3.6187]
[1757584390918,0.5149,4420.8,4420.7,3.8396]
[1757584391104,0.333,4421.5,4421.4,0.4109]
[1757584391303,3.2078,4421.7,4421.4,0.4109]
[1757584391304,0.5875397,4421.6,4421.4,0.4109]
[1757584391507,0.1176,4422.0,4421.4,0.4109]
[1757584391712,0.6325,4422.0,4421.9,0.4109]
[1757584392116,0.8262,4422.0,4421.9,0.4109]
[1757584393412,0.3091,4422.0,4421.9,0.6318]
[1757584393714,0.3091,4422.4,4421.9,0.6318]
[1757584393915,0.3091,4422.4,4421.9,0.4109]
[1757584394111,0.3506,4422.5,4421.9,0.4109]
[1757584394317,0.3091,4422.4,4421.9,0.4109]
[1757584394616,0.1176,4422.5,4421.9,0.4109]
[1757584395304,0.8358,4422.0,4421.9,0.4109]
[1757584395509,0.3091,4421.9,4421.8,3.2078]
[1757584395709,0.7086,4421.9,4421.8,3.4111]
[1757584397512,0.7086,4421.9,4421.8,3.2078]
[1757584398121,0.7086,4421.9,4421.8,3.4111]
[1757584398809,0.7086,4421.9,4421.8,3.6187]
[1757584399315,0.7086,4421.9,4421.8,3.2078]
[1757584400716,0.7086,4421.9,4421.8,3.4111]
[1757584401722,0.7086,4421.9,4421.8,0.2033]
[1757584402526,0.7086,4421.9,4421.3,3.2078]
[1757584402823,0.6421,4421.5,4421.4,0.4109]
[1757584405226,0.6421,4421.5,4421.4,0.6318]
[1757584405629,0.6421,4421.5,4421.4,0.4109]
[1757584405824,0.8358,4421.5,4421.4,0.4109]
[1757584406425,0.1272,4421.5,4421.4,0.4109]
[1757584406625,0.4363,4421.5,4421.4,0.4109]
[1757584406829,0.8358,4421.5,4421.4,0.4109]
[1757584407628,0.8358,4421.5,4421.4,0.6311]
[1757584408127,0.6421,4421.5,4421.4,0.4109]
[1757584408828,0.6421,4421.5,4421.4,0.6311]
[1757584410131,0.4363,4421.5,4421.4,0.6311]
[1757584412029,0.3091,4421.5,4421.4,0.6311]
[1757584412216,0.3021,4421.9,4421.8,0.6214]
[1757584412422,0.5064,4421.9,4421.8,0.6214]
[1757584412834,0.5064,4421.9,4421.8,3.8292]
[1757584413835,0.3021,4421.9,4421.8,3.8292]
[1757584414424,0.3021,4422.4,4421.8,3.609]
[1757584414634,0.5064,4422.4,4422.3,0.4012]
[1757584416031,0.5064,4422.4,4422.3,0.6214]
[1757584416228,0.5064,4422.4,4422.3,0.4012]
[1757584416532,0.7173,4422.4,4422.3,0.2018]
[1757584417533,0.7173,4421.9,4421.8,3.2078]
[1757584418129,0.7173,4421.9,4421.8,3.4096]
[1757584418435,0.7173,4421.9,4421.8,3.609]
[1757584419036,0.7173,4421.9,4421.8,3.2078]
[1757584419626,0.7173,4421.4,4421.3,3.4096]
[1757584421823,0.534,4421.0,4420.9,0.2018]
[1757584422026,0.8361,4421.0,4420.9,0.4338]
[1757584422629,0.8361,4421.0,4420.8,3.2078]
[1757584422834,0.3231,4420.5,4420.4,0.6332]
[1757584423031,0.6252,4420.5,4420.4,0.6332]
[1757584423233,0.6252,4420.5,4420.4,0.4012]
[1757584423435,0.8361,4420.5,4420.4,0.6332]
[1757584424328,0.8361,4420.5,4420.4,0.8537]
[1757584425634,0.8361,4420.5,4420.4,0.4012]
[1757584429536,0.8361,4420.5,4420.4,0.6217]
[1757584430637,0.3021,4420.9,4420.5,0.40708]
[1757584430835,0.7173,4420.9,4420.8,0.4012]
[1757584431034,0.3021,4420.4,4420.3,3.2078]
[1757584431334,0.7173,4420.4,4420.3,3.2078]
[1757584432528,0.7173,4420.4,4420.3,3.4096]
[1757584440139,0.7173,4420.4,4420.3,3.2078]
[1757584440546,0.5331,4420.0,4419.9,0.4366]
[1757584440746,0.8469,4420.0,4419.9,0.4039]
[1757584442244,0.6482,4420.0,4419.9,0.6246]
[1757584442638,0.4378,4420.0,4419.9,0.6246]
[1757584443845,0.6482,4420.0,4419.9,0.6246]
[1757584444046,0.3138,4420.0,4419.9,0.6246]
[1757584444244,0.1188,4420.5,4420.0,0.2207]
[1757584444544,0.3138,4420.4,4420.3,0.6246]
[1757584445245,0.3138,4420.4,4420.3,3.8324]
[1757584445844,0.3138,4420.9,4420.3,3.6117]
[1757584446142,0.5279,4421.0,4420.9,0.6246]
[1757584446447,0.8417,4421.0,4420.9,0.6246]
[1757584447446,0.8417,4421.0,4420.9,0.4039]
[1757584448145,0.8417,4421.0,4420.9,0.6246]
[1757584448545,0.8417,4421.0,4420.9,0.4039]
[1757584448752,0.6365,4420.5,4420.4,0.4039]
[1757584448939,0.8469,4420.5,4420.4,0.4039]
[1757584450546,0.2104,4419.9,4419.8,3.2078]
[1757584450755,0.5242,4419.9,4419.8,3.6117]
[1757584453049,0.7229,4419.9,4419.8,3.6117]
[1757584454449,0.7229,4419.9,4419.2,34.61356446]
[1757584454450,0.124,4419.5,4419.4,0.2056]
[1757584454653,0.8469,4419.5,4419.4,0.4039]
[1757584455147,0.8469,4419.5,4418.8,0.2207]
[1757584455350,0.3344,4419.0,4418.9,0.2056]
[1757584455543,0.8469,4419.0,4418.9,0.2056]
[1757584456342,0.8469,4419.0,4418.8,3.2078]
[1757584456544,0.3138,4418.9,4418.8,3.2078]
[1757584456745,0.7229,4418.9,4418.3,3.2078]
[1757584456946,0.124,4419.0,4418.3,3.2078]
[1757584456947,0.8469,4418.5,4418.4,0.2056]
[1757584457752,0.8469,4418.5,4418.4,0.4039]
[1757584461547,0.8469,4418.5,4418.4,0.2056]
[1757584461748,0.3138,4418.4,4418.3,3.4134]
[1757584461943,0.7229,4418.4,4418.3,3.4134]
[1757584462356,0.7229,4418.4,4418.3,3.6117]
[1757584463760,0.7229,4418.4,4418.3,3.4134]
[1757584465664,0.7229,4418.4,4418.3,3.6117]
[1757584471070,0.7229,4418.4,4418.3,0.4039]
[1757584471269,0.7229,4418.4,4418.3,0.2056]
[1757584472356,0.6295,4418.0,4417.9,0.4153]
[1757584473373,0.3028,4418.0,4417.9,0.6359]
[1757584474070,0.5119,4418.0,4417.9,0.6359]
[1757584474370,0.6295,4418.0,4417.9,0.6359]
[1757584476174,0.3028,4418.0,4417.9,0.6359]
[1757584476676,0.5119,4418.0,4417.9,0.6359]
[1757584476874,0.6295,4418.0,4417.9,0.6359]
[1757584477074,0.8401,4418.0,4417.9,0.4153]
[1757584477276,0.8401,4418.0,4417.9,0.6463]
[1757584477976,0.8401,4418.0,4417.9,0.8669]
[1757584478176,0.8401,4418.0,4417.9,0.6359]
[1757584478377,0.3028,4418.0,4417.9,0.6359]
[1757584480184,0.6295,4418.0,4417.9,0.6359]
[1757584481787,0.8401,4418.0,4417.9,0.6453]
[1757584482680,0.8401,4418.0,4417.9,0.4153]
[1757584482981,0.8401,4418.0,4417.9,0.2048]
[1757584485990,0.6295,4418.0,4417.9,0.6359]
[1757584486588,0.8401,4418.0,4417.9,0.4153]
[1757584488986,0.8401,4418.0,4417.9,0.4348]
[1757584491790,0.8401,4418.0,4417.9,0.6453]
[1757584492000,0.8401,4418.0,4417.9,0.8659]
[1757584492296,0.8401,4418.0,4417.9,0.6453]
[1757584492692,0.8401,4418.0,4417.8,3.2078]
[1757584492693,0.3028,4417.9,4417.8,3.2078]
[1757584492887,0.7225,4417.9,4417.8,3.4378]
[1757584494091,0.94885,4417.9,4417.8,3.2078]
[1757584494494,0.7225,4417.9,4417.8,3.2078]
[1757584496595,0.4197,4417.3,4417.2,3.4126]
[1757584496781,0.7225,4417.3,4417.2,3.6426]
[1757584496982,0.7225,4417.3,4417.2,4.0737]
[1757584497890,0.3028,4417.3,4417.2,4.0737]
[1757584498288,0.5016,4417.3,4417.2,4.0737]
[1757584500094,0.3028,4417.3,4417.2,3.8462]
[1757584502799,0.3028,4417.3,4417.2,4.0762]
[1757584503295,0.6987,4417.3,4417.2,3.4173]
[1757584504598,0.6987,4417.3,4417.2,3.6249]
[1757584507101,0.3028,4417.3,4417.2,3.8462]
[1757584507801,0.5016,4417.3,4417.2,3.8462]
[1757584508198,0.5016,4417.3,4417.2,4.0762]
[1757584509996,0.5016,4417.3,4417.2,3.8549]
[1757584510395,0.6987,4417.3,4417.2,3.4173]
[1757584510597,0.6987,4417.3,4417.2,3.6249]
[1757584510996,0.6987,4417.3,4417.0,0.23]